Department Family,Entity,Date,Expense Type,Expense Area,Supplier,SME,Transaction Number,Amount,Description,Expenditure Type
Land Registry,Land Registry,27/07/2015,DITI Enhancements,IS Service Delivery,ANS Group Plc,Large,1116730,"42,720.00",IT Enhancements,Administration
Land Registry,Land Registry,28/07/2015,Computer Equipment Maintenance,IS Service Delivery,Azzurri Communications Ltd,Large,1118423,"1,108.00",Computer Equipment Maintenance,Administration
Land Registry,Land Registry,28/07/2015,Fixed Asset Interface Account,Balance Sheet,Azzurri Communications Ltd,Large,1118423,"26,241.00",Fixed Assets,Administration
Land Registry,Land Registry,21/07/2015,Stationery National Contracts,Birkenhead Office,Banner Business Services Ltd,Large,1117518,"4,175.86",Stationery,Administration
Land Registry,Land Registry,21/07/2015,Stationery National Contracts,Central Facilities Management Team,Banner Business Services Ltd,Large,1117518,"3,897.78",Stationery,Administration
Land Registry,Land Registry,21/07/2015,Stationery National Contracts,Central Operations Group,Banner Business Services Ltd,Large,1117518,53.78,Stationery,Administration
Land Registry,Land Registry,21/07/2015,Stationery National Contracts,Chief Executives Office,Banner Business Services Ltd,Large,1117518,10.7,Stationery,Administration
Land Registry,Land Registry,21/07/2015,Stationery National Contracts,Corp Procurement,Banner Business Services Ltd,Large,1117518,17.64,Stationery,Administration
Land Registry,Land Registry,21/07/2015,Stationery National Contracts,Corporate Legal Services,Banner Business Services Ltd,Large,1117518,47.97,Stationery,Administration
Land Registry,Land Registry,21/07/2015,Stationery National Contracts,Coventry Office,Banner Business Services Ltd,Large,1117518,"5,462.39",Stationery,Administration
Land Registry,Land Registry,21/07/2015,Stationery National Contracts,Croydon Office,Banner Business Services Ltd,Large,1117518,"1,053.45",Stationery,Administration
Land Registry,Land Registry,21/07/2015,Stationery National Contracts,Durham Office,Banner Business Services Ltd,Large,1117518,"3,619.73",Stationery,Administration
Land Registry,Land Registry,21/07/2015,Stationery National Contracts,Finance Group,Banner Business Services Ltd,Large,1117518,180.64,Stationery,Administration
Land Registry,Land Registry,21/07/2015,Stationery National Contracts,Fylde Office,Banner Business Services Ltd,Large,1117518,573.91,Stationery,Administration
Land Registry,Land Registry,21/07/2015,Stationery National Contracts,Gloucester Office,Banner Business Services Ltd,Large,1117518,"3,084.49",Stationery,Administration
Land Registry,Land Registry,21/07/2015,Stationery National Contracts,Governance & Policy,Banner Business Services Ltd,Large,1117518,25.42,Stationery,Administration
Land Registry,Land Registry,21/07/2015,Stationery National Contracts,HR,Banner Business Services Ltd,Large,1117518,63.6,Stationery,Administration
Land Registry,Land Registry,21/07/2015,Stationery National Contracts,Hull Office,Banner Business Services Ltd,Large,1117518,"2,455.26",Stationery,Administration
Land Registry,Land Registry,21/07/2015,Stationery National Contracts,Internal Solutions Group,Banner Business Services Ltd,Large,1117518,765.71,Stationery,Administration
Land Registry,Land Registry,21/07/2015,Stationery National Contracts,International Unit,Banner Business Services Ltd,Large,1117518,45.26,Stationery,Administration
Land Registry,Land Registry,21/07/2015,Stationery National Contracts,IS Service Delivery,Banner Business Services Ltd,Large,1117518,"3,662.07",Stationery,Administration
Land Registry,Land Registry,21/07/2015,Stationery National Contracts,Land Charges,Banner Business Services Ltd,Large,1117518,296.35,Stationery,Administration
Land Registry,Land Registry,21/07/2015,Stationery National Contracts,Leicester Office,Banner Business Services Ltd,Large,1117518,"1,116.73",Stationery,Administration
Land Registry,Land Registry,21/07/2015,Stationery National Contracts,LR Board & Board Chair,Banner Business Services Ltd,Large,1117518,66.15,Stationery,Administration
Land Registry,Land Registry,21/07/2015,Stationery National Contracts,Marketing Services Team,Banner Business Services Ltd,Large,1117518,32.25,Stationery,Administration
Land Registry,Land Registry,21/07/2015,Stationery National Contracts,Nottingham Office,Banner Business Services Ltd,Large,1117518,"1,885.87",Stationery,Administration
Land Registry,Land Registry,21/07/2015,Stationery National Contracts,Peterborough Office,Banner Business Services Ltd,Large,1117518,"1,619.45",Stationery,Administration
Land Registry,Land Registry,21/07/2015,Stationery National Contracts,Plymouth Office,Banner Business Services Ltd,Large,1117518,"1,600.99",Stationery,Administration
Land Registry,Land Registry,21/07/2015,Stationery National Contracts,Research & Data Mining,Banner Business Services Ltd,Large,1117518,41.07,Stationery,Administration
Land Registry,Land Registry,21/07/2015,Stationery National Contracts,Telford Office,Banner Business Services Ltd,Large,1117518,402.95,Stationery,Administration
Land Registry,Land Registry,21/07/2015,Stationery National Contracts,Wales Office,Banner Business Services Ltd,Large,1117518,"4,968.05",Stationery,Administration
Land Registry,Land Registry,21/07/2015,Stationery National Contracts,Weymouth Office,Banner Business Services Ltd,Large,1117518,"1,214.10",Stationery,Administration
Land Registry,Land Registry,21/07/2015,Waste Disposal,Central Facilities Management Team,Banner Business Services Ltd,Large,1117518,"12,558.70",Waste Disposal,Administration
Land Registry,Land Registry,28/07/2015,Data Network Lines,IS Service Delivery,British Telecommunications Plc,Large,1118583,"3,425.65",Data Network Lines,Administration
Land Registry,Land Registry,28/07/2015,Telephone Costs,IS Service Delivery,British Telecommunications Plc,Large,1118583,"137,327.03",Telephone Costs,Administration
Land Registry,Land Registry,15/07/2015,Employment Agency Staff Costs,Dir: (Statutory) Commercial & Customer,Capita Business Services Ltd,SME,1117081,"30,452.71",Employment Agency Staff Costs,Administration
Land Registry,Land Registry,21/07/2015,Electricity,Birkenhead Office,Carillion Services Ltd,Large,1117678,"4,754.48",Electricity,Administration
Land Registry,Land Registry,21/07/2015,Electricity,Coventry Office,Carillion Services Ltd,Large,1117678,"6,495.07",Electricity,Administration
Land Registry,Land Registry,21/07/2015,Electricity,Croydon Office,Carillion Services Ltd,Large,1117678,"6,187.95",Electricity,Administration
Land Registry,Land Registry,21/07/2015,Electricity,Durham Office,Carillion Services Ltd,Large,1117678,"4,233.25",Electricity,Administration
Land Registry,Land Registry,21/07/2015,Electricity,Fylde Office,Carillion Services Ltd,Large,1117678,"8,565.51",Electricity,Administration
Land Registry,Land Registry,21/07/2015,Electricity,Gloucester Computer Centre,Carillion Services Ltd,Large,1117678,"30,894.32",Electricity,Administration
Land Registry,Land Registry,21/07/2015,Electricity,Governance & Policy,Carillion Services Ltd,Large,1117678,"45,598.83",Electricity,Administration
Land Registry,Land Registry,21/07/2015,Electricity,Hull Office,Carillion Services Ltd,Large,1117678,"6,182.49",Electricity,Administration
Land Registry,Land Registry,21/07/2015,Electricity,Leicester Office,Carillion Services Ltd,Large,1117678,"5,657.96",Electricity,Administration
Land Registry,Land Registry,21/07/2015,Electricity,Nottingham Office,Carillion Services Ltd,Large,1117678,"6,820.71",Electricity,Administration
Land Registry,Land Registry,21/07/2015,Electricity,Telford Office,Carillion Services Ltd,Large,1117678,"5,327.30",Electricity,Administration
Land Registry,Land Registry,21/07/2015,Electricity,Wales Office,Carillion Services Ltd,Large,1117678,"4,166.29",Electricity,Administration
Land Registry,Land Registry,21/07/2015,Electricity,Weymouth Office,Carillion Services Ltd,Large,1117678,"3,599.08",Electricity,Administration
Land Registry,Land Registry,21/07/2015,Facilities - Core Fee,Birkenhead Office,Carillion Services Ltd,Large,1117669,"5,725.76",Facilities - Core Fee,Administration
Land Registry,Land Registry,21/07/2015,Facilities - Core Fee,Coventry Office,Carillion Services Ltd,Large,1117669,"12,812.45",Facilities - Core Fee,Administration
Land Registry,Land Registry,21/07/2015,Facilities - Core Fee,Croydon Office,Carillion Services Ltd,Large,1117669,"8,596.90",Facilities - Core Fee,Administration
Land Registry,Land Registry,21/07/2015,Facilities - Core Fee,Durham Office,Carillion Services Ltd,Large,1117669,"6,798.58",Facilities - Core Fee,Administration
Land Registry,Land Registry,21/07/2015,Facilities - Core Fee,Fylde Office,Carillion Services Ltd,Large,1117669,"4,216.28",Facilities - Core Fee,Administration
Land Registry,Land Registry,21/07/2015,Facilities - Core Fee,Gloucester Computer Centre,Carillion Services Ltd,Large,1117669,"8,638.67",Facilities - Core Fee,Administration
Land Registry,Land Registry,21/07/2015,Facilities - Core Fee,Gloucester Office,Carillion Services Ltd,Large,1117669,"3,732.00",Facilities - Core Fee,Administration
Land Registry,Land Registry,21/07/2015,Facilities - Core Fee,Governance & Policy,Carillion Services Ltd,Large,1117669,"19,178.20",Facilities - Core Fee,Administration
Land Registry,Land Registry,21/07/2015,Facilities - Core Fee,Hull Office,Carillion Services Ltd,Large,1117669,"6,932.17",Facilities - Core Fee,Administration
Land Registry,Land Registry,21/07/2015,Facilities - Core Fee,Leicester Office,Carillion Services Ltd,Large,1117669,"10,057.34",Facilities - Core Fee,Administration
Land Registry,Land Registry,21/07/2015,Facilities - Core Fee,Nottingham Office,Carillion Services Ltd,Large,1117669,"6,542.64",Facilities - Core Fee,Administration
Land Registry,Land Registry,21/07/2015,Facilities - Core Fee,Peterborough Office,Carillion Services Ltd,Large,1117669,"3,636.16",Facilities - Core Fee,Administration
Land Registry,Land Registry,21/07/2015,Facilities - Core Fee,RFS4 - Coventry,Carillion Services Ltd,Large,1117669,23.78,Facilities - Core Fee,Administration
Land Registry,Land Registry,21/07/2015,Facilities - Core Fee,Telford Office,Carillion Services Ltd,Large,1117669,"6,674.60",Facilities - Core Fee,Administration
Land Registry,Land Registry,21/07/2015,Facilities - Core Fee,Wales Office,Carillion Services Ltd,Large,1117669,"5,615.76",Facilities - Core Fee,Administration
Land Registry,Land Registry,21/07/2015,Facilities - Core Fee,Weymouth Office,Carillion Services Ltd,Large,1117669,"2,703.13",Facilities - Core Fee,Administration
Land Registry,Land Registry,21/07/2015,Facilities - Quoted & Ad Hoc Works,Birkenhead Office,Carillion Services Ltd,Large,1117670,"2,621.50",Facilities - Quoted & Ad Hoc Works,Administration
Land Registry,Land Registry,21/07/2015,Facilities - Quoted & Ad Hoc Works,Coventry Office,Carillion Services Ltd,Large,1117670,"7,764.68",Facilities - Quoted & Ad Hoc Works,Administration
Land Registry,Land Registry,21/07/2015,Facilities - Quoted & Ad Hoc Works,Croydon Office,Carillion Services Ltd,Large,1117670,"2,387.65",Facilities - Quoted & Ad Hoc Works,Administration
Land Registry,Land Registry,21/07/2015,Facilities - Quoted & Ad Hoc Works,Durham Office,Carillion Services Ltd,Large,1117670,"7,581.07",Facilities - Quoted & Ad Hoc Works,Administration
Land Registry,Land Registry,21/07/2015,Facilities - Quoted & Ad Hoc Works,Fylde Office,Carillion Services Ltd,Large,1117670,"25,552.15",Facilities - Quoted & Ad Hoc Works,Administration
Land Registry,Land Registry,21/07/2015,Facilities - Quoted & Ad Hoc Works,Gloucester Computer Centre,Carillion Services Ltd,Large,1117670,"5,684.22",Facilities - Quoted & Ad Hoc Works,Administration
Land Registry,Land Registry,21/07/2015,Facilities - Quoted & Ad Hoc Works,Gloucester Office,Carillion Services Ltd,Large,1117670,"3,771.78",Facilities - Quoted & Ad Hoc Works,Administration
Land Registry,Land Registry,21/07/2015,Facilities - Quoted & Ad Hoc Works,Governance & Policy,Carillion Services Ltd,Large,1117670,"5,573.66",Facilities - Quoted & Ad Hoc Works,Administration
Land Registry,Land Registry,21/07/2015,Facilities - Quoted & Ad Hoc Works,Hull Office,Carillion Services Ltd,Large,1117670,"23,184.52",Facilities - Quoted & Ad Hoc Works,Administration
Land Registry,Land Registry,21/07/2015,Facilities - Quoted & Ad Hoc Works,Leicester Office,Carillion Services Ltd,Large,1117670,"2,289.05",Facilities - Quoted & Ad Hoc Works,Administration
Land Registry,Land Registry,21/07/2015,Facilities - Quoted & Ad Hoc Works,Nottingham Office,Carillion Services Ltd,Large,1117670,"2,997.80",Facilities - Quoted & Ad Hoc Works,Administration
Land Registry,Land Registry,21/07/2015,Facilities - Quoted & Ad Hoc Works,Peterborough Office,Carillion Services Ltd,Large,1117670,"2,392.37",Facilities - Quoted & Ad Hoc Works,Administration
Land Registry,Land Registry,21/07/2015,Facilities - Quoted & Ad Hoc Works,Telford Office,Carillion Services Ltd,Large,1117670,"5,387.75",Facilities - Quoted & Ad Hoc Works,Administration
Land Registry,Land Registry,21/07/2015,Facilities - Quoted & Ad Hoc Works,Wales Office,Carillion Services Ltd,Large,1117670,"6,523.68",Facilities - Quoted & Ad Hoc Works,Administration
Land Registry,Land Registry,21/07/2015,FF&F:Maintenance,Birkenhead Office,Carillion Services Ltd,Large,1117669,23.9,"Furniture, Fixtures & Fittings:Maintenance",Administration
Land Registry,Land Registry,21/07/2015,FF&F:Maintenance,Coventry Office,Carillion Services Ltd,Large,1117669,23.9,"Furniture, Fixtures & Fittings:Maintenance",Administration
Land Registry,Land Registry,21/07/2015,FF&F:Maintenance,Croydon Office,Carillion Services Ltd,Large,1117669,23.9,"Furniture, Fixtures & Fittings:Maintenance",Administration
Land Registry,Land Registry,21/07/2015,FF&F:Maintenance,Durham Office,Carillion Services Ltd,Large,1117669,23.9,"Furniture, Fixtures & Fittings:Maintenance",Administration
Land Registry,Land Registry,21/07/2015,FF&F:Maintenance,Fylde Office,Carillion Services Ltd,Large,1117669,23.9,"Furniture, Fixtures & Fittings:Maintenance",Administration
Land Registry,Land Registry,21/07/2015,FF&F:Maintenance,Gloucester Computer Centre,Carillion Services Ltd,Large,1117669,23.9,"Furniture, Fixtures & Fittings:Maintenance",Administration
Land Registry,Land Registry,21/07/2015,FF&F:Maintenance,Gloucester Office,Carillion Services Ltd,Large,1117669,23.9,"Furniture, Fixtures & Fittings:Maintenance",Administration
Land Registry,Land Registry,21/07/2015,FF&F:Maintenance,Governance & Policy,Carillion Services Ltd,Large,1117669,71.7,"Furniture, Fixtures & Fittings:Maintenance",Administration
Land Registry,Land Registry,21/07/2015,FF&F:Maintenance,Hull Office,Carillion Services Ltd,Large,1117669,23.9,"Furniture, Fixtures & Fittings:Maintenance",Administration
Land Registry,Land Registry,21/07/2015,FF&F:Maintenance,Leicester Office,Carillion Services Ltd,Large,1117669,47.8,"Furniture, Fixtures & Fittings:Maintenance",Administration
Land Registry,Land Registry,21/07/2015,FF&F:Maintenance,Nottingham Office,Carillion Services Ltd,Large,1117669,23.9,"Furniture, Fixtures & Fittings:Maintenance",Administration
Land Registry,Land Registry,21/07/2015,FF&F:Maintenance,Peterborough Office,Carillion Services Ltd,Large,1117669,23.92,"Furniture, Fixtures & Fittings:Maintenance",Administration
Land Registry,Land Registry,21/07/2015,FF&F:Maintenance,Telford Office,Carillion Services Ltd,Large,1117669,23.9,"Furniture, Fixtures & Fittings:Maintenance",Administration
Land Registry,Land Registry,21/07/2015,FF&F:Maintenance,Wales Office,Carillion Services Ltd,Large,1117669,47.8,"Furniture, Fixtures & Fittings:Maintenance",Administration
Land Registry,Land Registry,21/07/2015,FF&F:Maintenance,Weymouth Office,Carillion Services Ltd,Large,1117669,23.9,"Furniture, Fixtures & Fittings:Maintenance",Administration
Land Registry,Land Registry,21/07/2015,FF&F:Maintenance,Birkenhead Office,Carillion Services Ltd,Large,1117670,831.6,"Furniture, Fixtures & Fittings:Maintenance",Administration
Land Registry,Land Registry,21/07/2015,FF&F:Maintenance,Coventry Office,Carillion Services Ltd,Large,1117670,597.26,"Furniture, Fixtures & Fittings:Maintenance",Administration
Land Registry,Land Registry,21/07/2015,FF&F:Maintenance,Croydon Office,Carillion Services Ltd,Large,1117670,"1,174.80","Furniture, Fixtures & Fittings:Maintenance",Administration
Land Registry,Land Registry,21/07/2015,FF&F:Maintenance,Durham Office,Carillion Services Ltd,Large,1117670,"3,659.69","Furniture, Fixtures & Fittings:Maintenance",Administration
Land Registry,Land Registry,21/07/2015,FF&F:Maintenance,Fylde Office,Carillion Services Ltd,Large,1117670,587.4,"Furniture, Fixtures & Fittings:Maintenance",Administration
Land Registry,Land Registry,21/07/2015,FF&F:Maintenance,Gloucester Office,Carillion Services Ltd,Large,1117670,"1,711.87","Furniture, Fixtures & Fittings:Maintenance",Administration
Land Registry,Land Registry,21/07/2015,FF&F:Maintenance,Governance & Policy,Carillion Services Ltd,Large,1117670,"5,393.29","Furniture, Fixtures & Fittings:Maintenance",Administration
Land Registry,Land Registry,21/07/2015,FF&F:Maintenance,Hull Office,Carillion Services Ltd,Large,1117670,756.48,"Furniture, Fixtures & Fittings:Maintenance",Administration
Land Registry,Land Registry,21/07/2015,FF&F:Maintenance,Leicester Office,Carillion Services Ltd,Large,1117670,587.4,"Furniture, Fixtures & Fittings:Maintenance",Administration
Land Registry,Land Registry,21/07/2015,FF&F:Maintenance,Nottingham Office,Carillion Services Ltd,Large,1117670,"1,251.70","Furniture, Fixtures & Fittings:Maintenance",Administration
Land Registry,Land Registry,21/07/2015,FF&F:Maintenance,Peterborough Office,Carillion Services Ltd,Large,1117670,669.49,"Furniture, Fixtures & Fittings:Maintenance",Administration
Land Registry,Land Registry,21/07/2015,FF&F:Maintenance,Telford Office,Carillion Services Ltd,Large,1117670,669.03,"Furniture, Fixtures & Fittings:Maintenance",Administration
Land Registry,Land Registry,21/07/2015,FF&F:Maintenance,Wales Office,Carillion Services Ltd,Large,1117670,"10,648.73","Furniture, Fixtures & Fittings:Maintenance",Administration
Land Registry,Land Registry,21/07/2015,FF&F:Maintenance,Weymouth Office,Carillion Services Ltd,Large,1117670,"1,949.66","Furniture, Fixtures & Fittings:Maintenance",Administration
Land Registry,Land Registry,21/07/2015,FM Ext Helpdesk,Birkenhead Office,Carillion Services Ltd,Large,1117669,469.69,Facilities External Helpdesk,Administration
Land Registry,Land Registry,21/07/2015,FM Ext Helpdesk,Coventry Office,Carillion Services Ltd,Large,1117669,953.05,Facilities External Helpdesk,Administration
Land Registry,Land Registry,21/07/2015,FM Ext Helpdesk,Croydon Office,Carillion Services Ltd,Large,1117669,565.37,Facilities External Helpdesk,Administration
Land Registry,Land Registry,21/07/2015,FM Ext Helpdesk,Durham Office,Carillion Services Ltd,Large,1117669,589.49,Facilities External Helpdesk,Administration
Land Registry,Land Registry,21/07/2015,FM Ext Helpdesk,Fylde Office,Carillion Services Ltd,Large,1117669,409.95,Facilities External Helpdesk,Administration
Land Registry,Land Registry,21/07/2015,FM Ext Helpdesk,Gloucester Computer Centre,Carillion Services Ltd,Large,1117669,547.73,Facilities External Helpdesk,Administration
Land Registry,Land Registry,21/07/2015,FM Ext Helpdesk,Gloucester Office,Carillion Services Ltd,Large,1117669,590.42,Facilities External Helpdesk,Administration
Land Registry,Land Registry,21/07/2015,FM Ext Helpdesk,Governance & Policy,Carillion Services Ltd,Large,1117669,"1,497.55",Facilities External Helpdesk,Administration
Land Registry,Land Registry,21/07/2015,FM Ext Helpdesk,Hull Office,Carillion Services Ltd,Large,1117669,460.7,Facilities External Helpdesk,Administration
Land Registry,Land Registry,21/07/2015,FM Ext Helpdesk,Leicester Office,Carillion Services Ltd,Large,1117669,515.68,Facilities External Helpdesk,Administration
Land Registry,Land Registry,21/07/2015,FM Ext Helpdesk,Nottingham Office,Carillion Services Ltd,Large,1117669,"1,821.62",Facilities External Helpdesk,Administration
Land Registry,Land Registry,21/07/2015,FM Ext Helpdesk,Peterborough Office,Carillion Services Ltd,Large,1117669,601.66,Facilities External Helpdesk,Administration
Land Registry,Land Registry,21/07/2015,FM Ext Helpdesk,RFS4 - Coventry,Carillion Services Ltd,Large,1117669,7.88,Facilities External Helpdesk,Administration
Land Registry,Land Registry,21/07/2015,FM Ext Helpdesk,Telford Office,Carillion Services Ltd,Large,1117669,622.59,Facilities External Helpdesk,Administration
Land Registry,Land Registry,21/07/2015,FM Ext Helpdesk,Wales Office,Carillion Services Ltd,Large,1117669,446.36,Facilities External Helpdesk,Administration
Land Registry,Land Registry,21/07/2015,FM Ext Helpdesk,Weymouth Office,Carillion Services Ltd,Large,1117669,362.86,Facilities External Helpdesk,Administration
Land Registry,Land Registry,21/07/2015,FM Managed Services,Birkenhead Office,Carillion Services Ltd,Large,1117669,"6,197.64",Facilities Managed Services,Administration
Land Registry,Land Registry,21/07/2015,FM Managed Services,Coventry Office,Carillion Services Ltd,Large,1117669,"7,527.63",Facilities Managed Services,Administration
Land Registry,Land Registry,21/07/2015,FM Managed Services,Croydon Office,Carillion Services Ltd,Large,1117669,"6,266.18",Facilities Managed Services,Administration
Land Registry,Land Registry,21/07/2015,FM Managed Services,Durham Office,Carillion Services Ltd,Large,1117669,"5,999.55",Facilities Managed Services,Administration
Land Registry,Land Registry,21/07/2015,FM Managed Services,Fylde Office,Carillion Services Ltd,Large,1117669,"5,885.66",Facilities Managed Services,Administration
Land Registry,Land Registry,21/07/2015,FM Managed Services,Gloucester Computer Centre,Carillion Services Ltd,Large,1117669,"2,766.47",Facilities Managed Services,Administration
Land Registry,Land Registry,21/07/2015,FM Managed Services,Gloucester Office,Carillion Services Ltd,Large,1117669,"3,194.20",Facilities Managed Services,Administration
Land Registry,Land Registry,21/07/2015,FM Managed Services,Governance & Policy,Carillion Services Ltd,Large,1117669,"14,012.13",Facilities Managed Services,Administration
Land Registry,Land Registry,21/07/2015,FM Managed Services,Hull Office,Carillion Services Ltd,Large,1117669,"5,706.84",Facilities Managed Services,Administration
Land Registry,Land Registry,21/07/2015,FM Managed Services,Leicester Office,Carillion Services Ltd,Large,1117669,"6,646.44",Facilities Managed Services,Administration
Land Registry,Land Registry,21/07/2015,FM Managed Services,Nottingham Office,Carillion Services Ltd,Large,1117669,"11,107.20",Facilities Managed Services,Administration
Land Registry,Land Registry,21/07/2015,FM Managed Services,Peterborough Office,Carillion Services Ltd,Large,1117669,"5,506.40",Facilities Managed Services,Administration
Land Registry,Land Registry,21/07/2015,FM Managed Services,RFS4 - Coventry,Carillion Services Ltd,Large,1117669,25.41,Facilities Managed Services,Administration
Land Registry,Land Registry,21/07/2015,FM Managed Services,Telford Office,Carillion Services Ltd,Large,1117669,"6,187.74",Facilities Managed Services,Administration
Land Registry,Land Registry,21/07/2015,FM Managed Services,Wales Office,Carillion Services Ltd,Large,1117669,"5,750.31",Facilities Managed Services,Administration
Land Registry,Land Registry,21/07/2015,FM Managed Services,Weymouth Office,Carillion Services Ltd,Large,1117669,"5,886.51",Facilities Managed Services,Administration
Land Registry,Land Registry,21/07/2015,FM Managed Services,Weymouth Office,Carillion Services Ltd,Large,1117670,"2,420.21",Facilities Managed Services,Administration
Land Registry,Land Registry,21/07/2015,Gas,Birkenhead Office,Carillion Services Ltd,Large,1117678,"1,144.20",Gas,Administration
Land Registry,Land Registry,21/07/2015,Gas,Coventry Office,Carillion Services Ltd,Large,1117678,"2,350.56",Gas,Administration
Land Registry,Land Registry,21/07/2015,Gas,Croydon Office,Carillion Services Ltd,Large,1117678,"1,054.17",Gas,Administration
Land Registry,Land Registry,21/07/2015,Gas,Dir: HR,Carillion Services Ltd,Large,1117678,"1,035.30",Gas,Administration
Land Registry,Land Registry,21/07/2015,Gas,Durham Office,Carillion Services Ltd,Large,1117678,727.55,Gas,Administration
Land Registry,Land Registry,21/07/2015,Gas,Fylde Office,Carillion Services Ltd,Large,1117678,"1,169.64",Gas,Administration
Land Registry,Land Registry,21/07/2015,Gas,Gloucester Computer Centre,Carillion Services Ltd,Large,1117678,118.16,Gas,Administration
Land Registry,Land Registry,21/07/2015,Gas,Gloucester Office,Carillion Services Ltd,Large,1117678,663.43,Gas,Administration
Land Registry,Land Registry,21/07/2015,Gas,Governance & Policy,Carillion Services Ltd,Large,1117678,"1,556.45",Gas,Administration
Land Registry,Land Registry,21/07/2015,Gas,Hull Office,Carillion Services Ltd,Large,1117678,"1,780.21",Gas,Administration
Land Registry,Land Registry,21/07/2015,Gas,Leicester Office,Carillion Services Ltd,Large,1117678,"1,296.60",Gas,Administration
Land Registry,Land Registry,21/07/2015,Gas,Nottingham Office,Carillion Services Ltd,Large,1117678,"1,055.90",Gas,Administration
Land Registry,Land Registry,21/07/2015,Gas,Telford Office,Carillion Services Ltd,Large,1117678,"1,790.26",Gas,Administration
Land Registry,Land Registry,21/07/2015,Gas,Wales Office,Carillion Services Ltd,Large,1117678,661.89,Gas,Administration
Land Registry,Land Registry,21/07/2015,Gas,Weymouth Office,Carillion Services Ltd,Large,1117678,"1,014.50",Gas,Administration
Land Registry,Land Registry,21/07/2015,Grounds Maintenance,Birkenhead Office,Carillion Services Ltd,Large,1117669,360.91,Grounds Maintenance,Administration
Land Registry,Land Registry,21/07/2015,Grounds Maintenance,Coventry Office,Carillion Services Ltd,Large,1117669,683.02,Grounds Maintenance,Administration
Land Registry,Land Registry,21/07/2015,Grounds Maintenance,Croydon Office,Carillion Services Ltd,Large,1117669,68.04,Grounds Maintenance,Administration
Land Registry,Land Registry,21/07/2015,Grounds Maintenance,Durham Office,Carillion Services Ltd,Large,1117669,845.33,Grounds Maintenance,Administration
Land Registry,Land Registry,21/07/2015,Grounds Maintenance,Fylde Office,Carillion Services Ltd,Large,1117669,"1,578.69",Grounds Maintenance,Administration
Land Registry,Land Registry,21/07/2015,Grounds Maintenance,Gloucester Computer Centre,Carillion Services Ltd,Large,1117669,95.54,Grounds Maintenance,Administration
Land Registry,Land Registry,21/07/2015,Grounds Maintenance,Gloucester Office,Carillion Services Ltd,Large,1117669,646.08,Grounds Maintenance,Administration
Land Registry,Land Registry,21/07/2015,Grounds Maintenance,Governance & Policy,Carillion Services Ltd,Large,1117669,"1,544.25",Grounds Maintenance,Administration
Land Registry,Land Registry,21/07/2015,Grounds Maintenance,Hull Office,Carillion Services Ltd,Large,1117669,646.08,Grounds Maintenance,Administration
Land Registry,Land Registry,21/07/2015,Grounds Maintenance,Leicester Office,Carillion Services Ltd,Large,1117669,204.04,Grounds Maintenance,Administration
Land Registry,Land Registry,21/07/2015,Grounds Maintenance,Nottingham Office,Carillion Services Ltd,Large,1117669,327.55,Grounds Maintenance,Administration
Land Registry,Land Registry,21/07/2015,Grounds Maintenance,Telford Office,Carillion Services Ltd,Large,1117669,"1,113.38",Grounds Maintenance,Administration
Land Registry,Land Registry,21/07/2015,Grounds Maintenance,Wales Office,Carillion Services Ltd,Large,1117669,479.33,Grounds Maintenance,Administration
Land Registry,Land Registry,21/07/2015,Grounds Maintenance,Weymouth Office,Carillion Services Ltd,Large,1117669,744.67,Grounds Maintenance,Administration
Land Registry,Land Registry,21/07/2015,Grounds Maintenance,Coventry Office,Carillion Services Ltd,Large,1117670,"2,197.78",Grounds Maintenance,Administration
Land Registry,Land Registry,21/07/2015,Grounds Maintenance,Leicester Office,Carillion Services Ltd,Large,1117670,144.77,Grounds Maintenance,Administration
Land Registry,Land Registry,21/07/2015,Office Cleaning Expenses,Birkenhead Office,Carillion Services Ltd,Large,1117669,"5,405.79",Office Cleaning Expenses,Administration
Land Registry,Land Registry,21/07/2015,Office Cleaning Expenses,Coventry Office,Carillion Services Ltd,Large,1117669,"5,527.56",Office Cleaning Expenses,Administration
Land Registry,Land Registry,21/07/2015,Office Cleaning Expenses,Croydon Office,Carillion Services Ltd,Large,1117669,"4,098.21",Office Cleaning Expenses,Administration
Land Registry,Land Registry,21/07/2015,Office Cleaning Expenses,Dir: HR,Carillion Services Ltd,Large,1117669,283.2,Office Cleaning Expenses,Administration
Land Registry,Land Registry,21/07/2015,Office Cleaning Expenses,Durham Office,Carillion Services Ltd,Large,1117669,"6,263.88",Office Cleaning Expenses,Administration
Land Registry,Land Registry,21/07/2015,Office Cleaning Expenses,Fylde Office,Carillion Services Ltd,Large,1117669,"3,714.17",Office Cleaning Expenses,Administration
Land Registry,Land Registry,21/07/2015,Office Cleaning Expenses,Gloucester Computer Centre,Carillion Services Ltd,Large,1117669,538.16,Office Cleaning Expenses,Administration
Land Registry,Land Registry,21/07/2015,Office Cleaning Expenses,Gloucester Office,Carillion Services Ltd,Large,1117669,"6,993.71",Office Cleaning Expenses,Administration
Land Registry,Land Registry,21/07/2015,Office Cleaning Expenses,Governance & Policy,Carillion Services Ltd,Large,1117669,"8,816.71",Office Cleaning Expenses,Administration
Land Registry,Land Registry,21/07/2015,Office Cleaning Expenses,Hull Office,Carillion Services Ltd,Large,1117669,"3,917.37",Office Cleaning Expenses,Administration
Land Registry,Land Registry,21/07/2015,Office Cleaning Expenses,Leicester Office,Carillion Services Ltd,Large,1117669,"3,383.03",Office Cleaning Expenses,Administration
Land Registry,Land Registry,21/07/2015,Office Cleaning Expenses,Nottingham Office,Carillion Services Ltd,Large,1117669,"5,929.36",Office Cleaning Expenses,Administration
Land Registry,Land Registry,21/07/2015,Office Cleaning Expenses,Peterborough Office,Carillion Services Ltd,Large,1117669,875.68,Office Cleaning Expenses,Administration
Land Registry,Land Registry,21/07/2015,Office Cleaning Expenses,Telford Office,Carillion Services Ltd,Large,1117669,"6,105.89",Office Cleaning Expenses,Administration
Land Registry,Land Registry,21/07/2015,Office Cleaning Expenses,Wales Office,Carillion Services Ltd,Large,1117669,"4,937.51",Office Cleaning Expenses,Administration
Land Registry,Land Registry,21/07/2015,Office Cleaning Expenses,Weymouth Office,Carillion Services Ltd,Large,1117669,"4,374.46",Office Cleaning Expenses,Administration
Land Registry,Land Registry,21/07/2015,Pest Control,Birkenhead Office,Carillion Services Ltd,Large,1117669,41.24,Pest Control,Administration
Land Registry,Land Registry,21/07/2015,Pest Control,Coventry Office,Carillion Services Ltd,Large,1117669,52.57,Pest Control,Administration
Land Registry,Land Registry,21/07/2015,Pest Control,Croydon Office,Carillion Services Ltd,Large,1117669,39.6,Pest Control,Administration
Land Registry,Land Registry,21/07/2015,Pest Control,Durham Office,Carillion Services Ltd,Large,1117669,48.24,Pest Control,Administration
Land Registry,Land Registry,21/07/2015,Pest Control,Fylde Office,Carillion Services Ltd,Large,1117669,38.99,Pest Control,Administration
Land Registry,Land Registry,21/07/2015,Pest Control,Gloucester Computer Centre,Carillion Services Ltd,Large,1117669,28.19,Pest Control,Administration
Land Registry,Land Registry,21/07/2015,Pest Control,Gloucester Office,Carillion Services Ltd,Large,1117669,46,Pest Control,Administration
Land Registry,Land Registry,21/07/2015,Pest Control,Governance & Policy,Carillion Services Ltd,Large,1117669,141.88,Pest Control,Administration
Land Registry,Land Registry,21/07/2015,Pest Control,Hull Office,Carillion Services Ltd,Large,1117669,49.28,Pest Control,Administration
Land Registry,Land Registry,21/07/2015,Pest Control,Leicester Office,Carillion Services Ltd,Large,1117669,38.99,Pest Control,Administration
Land Registry,Land Registry,21/07/2015,Pest Control,Nottingham Office,Carillion Services Ltd,Large,1117669,133.15,Pest Control,Administration
Land Registry,Land Registry,21/07/2015,Pest Control,Peterborough Office,Carillion Services Ltd,Large,1117669,40.41,Pest Control,Administration
Land Registry,Land Registry,21/07/2015,Pest Control,RFS4 - Coventry,Carillion Services Ltd,Large,1117669,52.57,Pest Control,Administration
Land Registry,Land Registry,21/07/2015,Pest Control,Telford Office,Carillion Services Ltd,Large,1117669,44.27,Pest Control,Administration
Land Registry,Land Registry,21/07/2015,Pest Control,Wales Office,Carillion Services Ltd,Large,1117669,58.45,Pest Control,Administration
Land Registry,Land Registry,21/07/2015,Pest Control,Weymouth Office,Carillion Services Ltd,Large,1117669,41.24,Pest Control,Administration
Land Registry,Land Registry,21/07/2015,Property Management; Other Fees,Dir: HR,Carillion Services Ltd,Large,1117669,"1,933.38",Property Management; Other Fees,Administration
Land Registry,Land Registry,21/07/2015,Property Management; Other Fees,Dir: HR,Carillion Services Ltd,Large,1117670,"3,034.01",Property Management; Other Fees,Administration
Land Registry,Land Registry,21/07/2015,Security Expenses,Birkenhead Office,Carillion Services Ltd,Large,1117669,"3,092.39",Security Expenses,Administration
Land Registry,Land Registry,21/07/2015,Security Expenses,Coventry Office,Carillion Services Ltd,Large,1117669,"6,776.90",Security Expenses,Administration
Land Registry,Land Registry,21/07/2015,Security Expenses,Croydon Office,Carillion Services Ltd,Large,1117669,"8,617.96",Security Expenses,Administration
Land Registry,Land Registry,21/07/2015,Security Expenses,Durham Office,Carillion Services Ltd,Large,1117669,"2,505.96",Security Expenses,Administration
Land Registry,Land Registry,21/07/2015,Security Expenses,Fylde Office,Carillion Services Ltd,Large,1117669,"2,267.93",Security Expenses,Administration
Land Registry,Land Registry,21/07/2015,Security Expenses,Gloucester Computer Centre,Carillion Services Ltd,Large,1117669,"7,306.35",Security Expenses,Administration
Land Registry,Land Registry,21/07/2015,Security Expenses,Gloucester Office,Carillion Services Ltd,Large,1117669,"9,280.79",Security Expenses,Administration
Land Registry,Land Registry,21/07/2015,Security Expenses,Governance & Policy,Carillion Services Ltd,Large,1117669,"18,873.73",Security Expenses,Administration
Land Registry,Land Registry,21/07/2015,Security Expenses,Hull Office,Carillion Services Ltd,Large,1117669,"2,840.47",Security Expenses,Administration
Land Registry,Land Registry,21/07/2015,Security Expenses,Leicester Office,Carillion Services Ltd,Large,1117669,"2,558.15",Security Expenses,Administration
Land Registry,Land Registry,21/07/2015,Security Expenses,Nottingham Office,Carillion Services Ltd,Large,1117669,"3,259.05",Security Expenses,Administration
Land Registry,Land Registry,21/07/2015,Security Expenses,Telford Office,Carillion Services Ltd,Large,1117669,"2,793.47",Security Expenses,Administration
Land Registry,Land Registry,21/07/2015,Security Expenses,Wales Office,Carillion Services Ltd,Large,1117669,"2,529.85",Security Expenses,Administration
Land Registry,Land Registry,21/07/2015,Security Expenses,Weymouth Office,Carillion Services Ltd,Large,1117669,"2,796.07",Security Expenses,Administration
Land Registry,Land Registry,21/07/2015,Security Expenses,Birkenhead Office,Carillion Services Ltd,Large,1117670,749.21,Security Expenses,Administration
Land Registry,Land Registry,21/07/2015,Security Expenses,Dir: HR,Carillion Services Ltd,Large,1117670,347.28,Security Expenses,Administration
Land Registry,Land Registry,21/07/2015,Security Expenses,Durham Office,Carillion Services Ltd,Large,1117670,745.02,Security Expenses,Administration
Land Registry,Land Registry,21/07/2015,Security Expenses,Fylde Office,Carillion Services Ltd,Large,1117670,"1,104.28",Security Expenses,Administration
Land Registry,Land Registry,21/07/2015,Security Expenses,Gloucester Office,Carillion Services Ltd,Large,1117670,398.58,Security Expenses,Administration
Land Registry,Land Registry,21/07/2015,Security Expenses,Hull Office,Carillion Services Ltd,Large,1117670,162.98,Security Expenses,Administration
Land Registry,Land Registry,21/07/2015,Security Expenses,Telford Office,Carillion Services Ltd,Large,1117670,"19,560.02",Security Expenses,Administration
Land Registry,Land Registry,21/07/2015,Security Expenses,Wales Office,Carillion Services Ltd,Large,1117670,898.8,Security Expenses,Administration
Land Registry,Land Registry,21/07/2015,Vending Machine Consumables & Repairs,Birkenhead Office,Carillion Services Ltd,Large,1117669,"1,201.38",Vending Machine Consumables & Repairs,Administration
Land Registry,Land Registry,21/07/2015,Vending Machine Consumables & Repairs,Coventry Office,Carillion Services Ltd,Large,1117669,176.38,Vending Machine Consumables & Repairs,Administration
Land Registry,Land Registry,21/07/2015,Vending Machine Consumables & Repairs,Croydon Office,Carillion Services Ltd,Large,1117669,223.93,Vending Machine Consumables & Repairs,Administration
Land Registry,Land Registry,21/07/2015,Vending Machine Consumables & Repairs,Durham Office,Carillion Services Ltd,Large,1117669,44.09,Vending Machine Consumables & Repairs,Administration
Land Registry,Land Registry,21/07/2015,Vending Machine Consumables & Repairs,Fylde Office,Carillion Services Ltd,Large,1117669,157.35,Vending Machine Consumables & Repairs,Administration
Land Registry,Land Registry,21/07/2015,Vending Machine Consumables & Repairs,Gloucester Computer Centre,Carillion Services Ltd,Large,1117669,20.06,Vending Machine Consumables & Repairs,Administration
Land Registry,Land Registry,21/07/2015,Vending Machine Consumables & Repairs,Gloucester Office,Carillion Services Ltd,Large,1117669,144.21,Vending Machine Consumables & Repairs,Administration
Land Registry,Land Registry,21/07/2015,Vending Machine Consumables & Repairs,Governance & Policy,Carillion Services Ltd,Large,1117669,218.04,Vending Machine Consumables & Repairs,Administration
Land Registry,Land Registry,21/07/2015,Vending Machine Consumables & Repairs,Hull Office,Carillion Services Ltd,Large,1117669,346.87,Vending Machine Consumables & Repairs,Administration
Land Registry,Land Registry,21/07/2015,Vending Machine Consumables & Repairs,Leicester Office,Carillion Services Ltd,Large,1117669,116.03,Vending Machine Consumables & Repairs,Administration
Land Registry,Land Registry,21/07/2015,Vending Machine Consumables & Repairs,Nottingham Office,Carillion Services Ltd,Large,1117669,129.69,Vending Machine Consumables & Repairs,Administration
Land Registry,Land Registry,21/07/2015,Vending Machine Consumables & Repairs,Telford Office,Carillion Services Ltd,Large,1117669,198.08,Vending Machine Consumables & Repairs,Administration
Land Registry,Land Registry,21/07/2015,Vending Machine Consumables & Repairs,Wales Office,Carillion Services Ltd,Large,1117669,194.19,Vending Machine Consumables & Repairs,Administration
Land Registry,Land Registry,21/07/2015,Vending Machine Consumables & Repairs,Weymouth Office,Carillion Services Ltd,Large,1117669,112.4,Vending Machine Consumables & Repairs,Administration
Land Registry,Land Registry,21/07/2015,Waste Disposal,Birkenhead Office,Carillion Services Ltd,Large,1117669,289.64,Waste Disposal,Administration
Land Registry,Land Registry,21/07/2015,Waste Disposal,Coventry Office,Carillion Services Ltd,Large,1117669,242.08,Waste Disposal,Administration
Land Registry,Land Registry,21/07/2015,Waste Disposal,Croydon Office,Carillion Services Ltd,Large,1117669,212.07,Waste Disposal,Administration
Land Registry,Land Registry,21/07/2015,Waste Disposal,Dir: HR,Carillion Services Ltd,Large,1117669,69.69,Waste Disposal,Administration
Land Registry,Land Registry,21/07/2015,Waste Disposal,Durham Office,Carillion Services Ltd,Large,1117669,337.19,Waste Disposal,Administration
Land Registry,Land Registry,21/07/2015,Waste Disposal,Fylde Office,Carillion Services Ltd,Large,1117669,259.55,Waste Disposal,Administration
Land Registry,Land Registry,21/07/2015,Waste Disposal,Gloucester Computer Centre,Carillion Services Ltd,Large,1117669,46.09,Waste Disposal,Administration
Land Registry,Land Registry,21/07/2015,Waste Disposal,Gloucester Office,Carillion Services Ltd,Large,1117669,251.33,Waste Disposal,Administration
Land Registry,Land Registry,21/07/2015,Waste Disposal,Governance & Policy,Carillion Services Ltd,Large,1117669,663.35,Waste Disposal,Administration
Land Registry,Land Registry,21/07/2015,Waste Disposal,Hull Office,Carillion Services Ltd,Large,1117669,189.59,Waste Disposal,Administration
Land Registry,Land Registry,21/07/2015,Waste Disposal,Leicester Office,Carillion Services Ltd,Large,1117669,274.24,Waste Disposal,Administration
Land Registry,Land Registry,21/07/2015,Waste Disposal,Nottingham Office,Carillion Services Ltd,Large,1117669,337.19,Waste Disposal,Administration
Land Registry,Land Registry,21/07/2015,Waste Disposal,Telford Office,Carillion Services Ltd,Large,1117669,242.52,Waste Disposal,Administration
Land Registry,Land Registry,21/07/2015,Waste Disposal,Wales Office,Carillion Services Ltd,Large,1117669,209.06,Waste Disposal,Administration
Land Registry,Land Registry,21/07/2015,Waste Disposal,Weymouth Office,Carillion Services Ltd,Large,1117669,172.37,Waste Disposal,Administration
Land Registry,Land Registry,21/07/2015,Waste Disposal,Fylde Office,Carillion Services Ltd,Large,1117670,216.2,Waste Disposal,Administration
Land Registry,Land Registry,21/07/2015,Waste Disposal,Gloucester Computer Centre,Carillion Services Ltd,Large,1117670,171.15,Waste Disposal,Administration
Land Registry,Land Registry,21/07/2015,Waste Disposal,Gloucester Office,Carillion Services Ltd,Large,1117670,417.06,Waste Disposal,Administration
Land Registry,Land Registry,21/07/2015,Waste Disposal,Governance & Policy,Carillion Services Ltd,Large,1117670,436.35,Waste Disposal,Administration
Land Registry,Land Registry,21/07/2015,Waste Disposal,Hull Office,Carillion Services Ltd,Large,1117670,480,Waste Disposal,Administration
Land Registry,Land Registry,21/07/2015,Waste Disposal,Nottingham Office,Carillion Services Ltd,Large,1117670,60,Waste Disposal,Administration
Land Registry,Land Registry,21/07/2015,Waste Disposal,Telford Office,Carillion Services Ltd,Large,1117670,749.89,Waste Disposal,Administration
Land Registry,Land Registry,21/07/2015,Waste Disposal,Weymouth Office,Carillion Services Ltd,Large,1117670,464.15,Waste Disposal,Administration
Land Registry,Land Registry,21/07/2015,Water,Coventry Office,Carillion Services Ltd,Large,1117678,"1,816.98",Water,Administration
Land Registry,Land Registry,21/07/2015,Water,Croydon Office,Carillion Services Ltd,Large,1117678,"2,652.83",Water,Administration
Land Registry,Land Registry,21/07/2015,Water,Durham Office,Carillion Services Ltd,Large,1117678,"3,208.02",Water,Administration
Land Registry,Land Registry,21/07/2015,Water,Gloucester Office,Carillion Services Ltd,Large,1117678,"1,994.13",Water,Administration
Land Registry,Land Registry,21/07/2015,Water,Hull Office,Carillion Services Ltd,Large,1117678,651.49,Water,Administration
Land Registry,Land Registry,21/07/2015,Water,Telford Office,Carillion Services Ltd,Large,1117678,722.15,Water,Administration
Land Registry,Land Registry,14/07/2015,Computer Equipment Maintenance,IS Service Delivery,CGI IT UK Limited,Large,1116957,"69,500.00",Computer Equipment Maintenance,Administration
Land Registry,Land Registry,24/07/2015,Computer Equipment Maintenance,IS Service Delivery,CGI IT UK Limited,Large,1117052,"39,068.30",Computer Equipment Maintenance,Administration
Land Registry,Land Registry,01/07/2015,Computer Equipment Hire,IS Service Delivery,CHG-MERIDIAN UK Limited,Large,1115954,"54,985.00",Computer Equipment Hire,Administration
Land Registry,Land Registry,31/07/2015,Finance Charges on Leases,IS Service Delivery,CHG-MERIDIAN UK Limited,Large,1116739,59.64,Finance Charges on Leases,Administration
Land Registry,Land Registry,31/07/2015,Finance Lease Obligatns < 1 yr,Balance Sheet,CHG-MERIDIAN UK Limited,Large,1116739,"31,505.58",Finance Lease Obligatns less than 1 year,Administration
Land Registry,Land Registry,27/07/2015,Rates Payable,Wales Office,City & County of Swansea,Large,1103652,"17,593.00",Rates Payable,Administration
Land Registry,Land Registry,27/07/2015,Rates Payable,Dir: HR,City of York Council,Large,1102255,"17,748.00",Rates Payable,Administration
Land Registry,Land Registry,27/07/2015,Rates Payable,Coventry Office,Coventry City Council,Large,1103644,"40,180.00",Rates Payable,Administration
Land Registry,Land Registry,31/07/2015,Rates Payable,Croydon Office,Croydon Council,Large,1102254,"29,241.00",Rates Payable,Administration
Land Registry,Land Registry,27/07/2015,Rates Payable,Durham Office,Durham County Council,Large,1103047,"28,594.00",Rates Payable,Administration
Land Registry,Land Registry,02/07/2015,Transport Fuel,Central Facilities Management Team,Enterprise Rent-A-Car (UK) Ltd,Large,1115538,"3,887.47",Transport Fuel,Administration
Land Registry,Land Registry,02/07/2015,Transport Hire of Cars and Vans,Central Facilities Management Team,Enterprise Rent-A-Car (UK) Ltd,Large,1115538,"27,213.95",Transport Hire of Cars and Vans,Administration
Land Registry,Land Registry,20/07/2015,Computer Equipment Maintenance,IS Service Delivery,Experian Ltd,Large,1117407,"58,050.00",Computer Equipment Maintenance,Administration
Land Registry,Land Registry,27/07/2015,Rates Payable,Fylde Office,Fylde Borough Council,Large,1101943,"15,489.00",Rates Payable,Administration
Land Registry,Land Registry,27/07/2015,Rates Payable,Gloucester Office,Gloucester City Council,Large,1103041,"24,201.77",Rates Payable,Administration
Land Registry,Land Registry,31/07/2015,Taxation,HR Operations,H M Revenue & Customs,Large,1119198,"71,091.06",HMRC Taxation,Administration
Land Registry,Land Registry,22/07/2015,Computer Equipment Maintenance,IS Service Delivery,IBM United Kingdom Ltd,Large,1117726,"107,611.48",Computer Equipment Maintenance,Administration
Land Registry,Land Registry,06/07/2015,Fixed Asset Interface Account,Balance Sheet,IBM United Kingdom Ltd,Large,1115948,"364,554.00",Fixed Assets,Administration
Land Registry,Land Registry,29/07/2015,Data Network Lines,IS Service Delivery,Interoute Vtesse Ltd,Large,1117070,"47,934.80",Data Network Lines,Administration
Land Registry,Land Registry,16/07/2015,Employment Agency Staff Costs,Prog: Digital by Default,IPL Information Processing Ltd,Large,1117127,"-26,026.84",Employment Agency Staff Costs,Administration
Land Registry,Land Registry,16/07/2015,Employment Agency Staff Costs,Prog: Digital by Default,IPL Information Processing Ltd,Large,1117128,"26,026.84",Employment Agency Staff Costs,Administration
Land Registry,Land Registry,02/07/2015,Employment Agency Staff Costs,Prog: Digital by Default,Kainos Software Ltd,Large,1115227,"41,380.00",Employment Agency Staff Costs,Administration
Land Registry,Land Registry,02/07/2015,Employment Agency Staff Costs,Prog: Digital by Default,Kainos Software Ltd,Large,1115228,"56,154.00",Employment Agency Staff Costs,Administration
Land Registry,Land Registry,10/07/2015,Rates Payable,Hull Office,Kingston Upon Hull City Council,Large,1103201,"13,065.00",Rates Payable,Administration
Land Registry,Land Registry,27/07/2015,Rates Payable,Leicester Office,Leicester City Council,Large,1101944,"18,488.00",Rates Payable,Administration
Land Registry,Land Registry,27/07/2015,Rates Payable,Nottingham Office,Nottingham City Council,Large,1103651,"24,650.00",Rates Payable,Administration
Land Registry,Land Registry,27/07/2015,Rates Payable,Peterborough Office,Peterborough City Council,Large,1102471,"11,093.00",Rates Payable,Administration
Land Registry,Land Registry,27/07/2015,Rates Payable,Governance & Policy,Plymouth City Council,Large,1101940,"36,975.00",Rates Payable,Administration
Land Registry,Land Registry,08/07/2015,Professional Services,LR Connect Portfolio,PriceWaterhouseCoopers LLP,Large,1114015,"31,199.00",Professional Services,Administration
Land Registry,Land Registry,15/07/2015,Travel & Subsistence General Duty,Birkenhead Office,Redfern Travel Ltd,SME,1117068,165.22,Travel & Subsistence,Administration
Land Registry,Land Registry,15/07/2015,Travel & Subsistence General Duty,Business Continuity,Redfern Travel Ltd,SME,1117068,91.95,Travel & Subsistence,Administration
Land Registry,Land Registry,15/07/2015,Travel & Subsistence General Duty,Business Development,Redfern Travel Ltd,SME,1117068,895.44,Travel & Subsistence,Administration
Land Registry,Land Registry,15/07/2015,Travel & Subsistence General Duty,Central Facilities Management Team,Redfern Travel Ltd,SME,1117068,909.59,Travel & Subsistence,Administration
Land Registry,Land Registry,15/07/2015,Travel & Subsistence General Duty,Central Operations Group,Redfern Travel Ltd,SME,1117068,"2,669.38",Travel & Subsistence,Administration
Land Registry,Land Registry,15/07/2015,Travel & Subsistence General Duty,Central RFS,Redfern Travel Ltd,SME,1117068,102.63,Travel & Subsistence,Administration
Land Registry,Land Registry,15/07/2015,Travel & Subsistence General Duty,Chief Executives Office,Redfern Travel Ltd,SME,1117068,881.96,Travel & Subsistence,Administration
Land Registry,Land Registry,15/07/2015,Travel & Subsistence General Duty,Commercial & Customer Strategy & Performance,Redfern Travel Ltd,SME,1117068,169.16,Travel & Subsistence,Administration
Land Registry,Land Registry,15/07/2015,Travel & Subsistence General Duty,Commercial Director,Redfern Travel Ltd,SME,1117068,195.97,Travel & Subsistence,Administration
Land Registry,Land Registry,15/07/2015,Travel & Subsistence General Duty,Corp Procurement,Redfern Travel Ltd,SME,1117068,-255.97,Travel & Subsistence,Administration
Land Registry,Land Registry,15/07/2015,Travel & Subsistence General Duty,Corporate Assurance,Redfern Travel Ltd,SME,1117068,295.56,Travel & Subsistence,Administration
Land Registry,Land Registry,15/07/2015,Travel & Subsistence General Duty,Corporate Legal Services,Redfern Travel Ltd,SME,1117068,345.51,Travel & Subsistence,Administration
Land Registry,Land Registry,15/07/2015,Travel & Subsistence General Duty,Croydon Office,Redfern Travel Ltd,SME,1117068,193.73,Travel & Subsistence,Administration
Land Registry,Land Registry,15/07/2015,Travel & Subsistence General Duty,Dir: (Statutory) Digital Services,Redfern Travel Ltd,SME,1117068,424.21,Travel & Subsistence,Administration
Land Registry,Land Registry,15/07/2015,Travel & Subsistence General Duty,Director of Information Systems,Redfern Travel Ltd,SME,1117068,279.64,Travel & Subsistence,Administration
Land Registry,Land Registry,15/07/2015,Travel & Subsistence General Duty,Director of Operations,Redfern Travel Ltd,SME,1117068,76.86,Travel & Subsistence,Administration
Land Registry,Land Registry,15/07/2015,Travel & Subsistence General Duty,Durham Office,Redfern Travel Ltd,SME,1117068,74.58,Travel & Subsistence,Administration
Land Registry,Land Registry,15/07/2015,Travel & Subsistence General Duty,Finance Director,Redfern Travel Ltd,SME,1117068,257.13,Travel & Subsistence,Administration
Land Registry,Land Registry,15/07/2015,Travel & Subsistence General Duty,Finance Group,Redfern Travel Ltd,SME,1117068,58.42,Travel & Subsistence,Administration
Land Registry,Land Registry,15/07/2015,Travel & Subsistence General Duty,Fylde Office,Redfern Travel Ltd,SME,1117068,71.32,Travel & Subsistence,Administration
Land Registry,Land Registry,15/07/2015,Travel & Subsistence General Duty,Gloucester Office,Redfern Travel Ltd,SME,1117068,42.12,Travel & Subsistence,Administration
Land Registry,Land Registry,15/07/2015,Travel & Subsistence General Duty,Guarantee & Litigation,Redfern Travel Ltd,SME,1117068,81.89,Travel & Subsistence,Administration
Land Registry,Land Registry,15/07/2015,Travel & Subsistence General Duty,HR,Redfern Travel Ltd,SME,1117068,-36.97,Travel & Subsistence,Administration
Land Registry,Land Registry,15/07/2015,Travel & Subsistence General Duty,HR Group,Redfern Travel Ltd,SME,1117068,"4,132.26",Travel & Subsistence,Administration
Land Registry,Land Registry,15/07/2015,Travel & Subsistence General Duty,HR Operations,Redfern Travel Ltd,SME,1117068,68.81,Travel & Subsistence,Administration
Land Registry,Land Registry,15/07/2015,Travel & Subsistence General Duty,Hull Office,Redfern Travel Ltd,SME,1117068,-218.6,Travel & Subsistence,Administration
Land Registry,Land Registry,15/07/2015,Travel & Subsistence General Duty,Internal Solutions Group,Redfern Travel Ltd,SME,1117068,405.27,Travel & Subsistence,Administration
Land Registry,Land Registry,15/07/2015,Travel & Subsistence General Duty,International Unit,Redfern Travel Ltd,SME,1117068,144.82,Travel & Subsistence,Administration
Land Registry,Land Registry,15/07/2015,Travel & Subsistence General Duty,IS Service Delivery,Redfern Travel Ltd,SME,1117068,"2,314.41",Travel & Subsistence,Administration
Land Registry,Land Registry,15/07/2015,Travel & Subsistence General Duty,Local Land Charges,Redfern Travel Ltd,SME,1117068,204.42,Travel & Subsistence,Administration
Land Registry,Land Registry,15/07/2015,Travel & Subsistence General Duty,Local Lawyer Group,Redfern Travel Ltd,SME,1117068,571.02,Travel & Subsistence,Administration
Land Registry,Land Registry,15/07/2015,Travel & Subsistence General Duty,LR Connect Portfolio,Redfern Travel Ltd,SME,1117068,843.78,Travel & Subsistence,Administration
Land Registry,Land Registry,15/07/2015,Travel & Subsistence General Duty,Marketing Services Team,Redfern Travel Ltd,SME,1117068,31.71,Travel & Subsistence,Administration
Land Registry,Land Registry,15/07/2015,Travel & Subsistence General Duty,Nottingham Office,Redfern Travel Ltd,SME,1117068,164.19,Travel & Subsistence,Administration
Land Registry,Land Registry,15/07/2015,Travel & Subsistence General Duty,Peterborough Office,Redfern Travel Ltd,SME,1117068,197.05,Travel & Subsistence,Administration
Land Registry,Land Registry,15/07/2015,Travel & Subsistence General Duty,Plymouth Office,Redfern Travel Ltd,SME,1117068,-31.11,Travel & Subsistence,Administration
Land Registry,Land Registry,15/07/2015,Travel & Subsistence General Duty,Product Development & Management,Redfern Travel Ltd,SME,1117068,424.31,Travel & Subsistence,Administration
Land Registry,Land Registry,15/07/2015,Travel & Subsistence General Duty,Prog: Digital by Default,Redfern Travel Ltd,SME,1117068,"6,110.58",Travel & Subsistence,Administration
Land Registry,Land Registry,15/07/2015,Travel & Subsistence General Duty,Prog: e-Enablement,Redfern Travel Ltd,SME,1117068,"1,869.97",Travel & Subsistence,Administration
Land Registry,Land Registry,15/07/2015,Travel & Subsistence General Duty,Prog: IT Foundations,Redfern Travel Ltd,SME,1117068,158.75,Travel & Subsistence,Administration
Land Registry,Land Registry,15/07/2015,Travel & Subsistence General Duty,Program: Local Land Charges,Redfern Travel Ltd,SME,1117068,"4,419.95",Travel & Subsistence,Administration
Land Registry,Land Registry,15/07/2015,Travel & Subsistence General Duty,Projects and Programme Centre,Redfern Travel Ltd,SME,1117068,293.13,Travel & Subsistence,Administration
Land Registry,Land Registry,15/07/2015,Travel & Subsistence General Duty,Property Asset Management Group,Redfern Travel Ltd,SME,1117068,"1,158.16",Travel & Subsistence,Administration
Land Registry,Land Registry,15/07/2015,Travel & Subsistence General Duty,Research & Data Mining,Redfern Travel Ltd,SME,1117068,86.92,Travel & Subsistence,Administration
Land Registry,Land Registry,15/07/2015,Travel & Subsistence General Duty,Strategy Team,Redfern Travel Ltd,SME,1117068,-73.34,Travel & Subsistence,Administration
Land Registry,Land Registry,15/07/2015,Travel & Subsistence General Duty,Technology Group,Redfern Travel Ltd,SME,1117068,222.71,Travel & Subsistence,Administration
Land Registry,Land Registry,15/07/2015,Travel & Subsistence General Duty,Wales Office,Redfern Travel Ltd,SME,1117068,131.58,Travel & Subsistence,Administration
Land Registry,Land Registry,20/07/2015,Travel & Subsistence General Duty,Birkenhead Office,Redfern Travel Ltd,SME,1117489,73.84,Travel & Subsistence,Administration
Land Registry,Land Registry,20/07/2015,Travel & Subsistence General Duty,Business Development,Redfern Travel Ltd,SME,1117489,"1,122.27",Travel & Subsistence,Administration
Land Registry,Land Registry,20/07/2015,Travel & Subsistence General Duty,Central Facilities Management Team,Redfern Travel Ltd,SME,1117489,748.71,Travel & Subsistence,Administration
Land Registry,Land Registry,20/07/2015,Travel & Subsistence General Duty,Central Operations Group,Redfern Travel Ltd,SME,1117489,"1,350.17",Travel & Subsistence,Administration
Land Registry,Land Registry,20/07/2015,Travel & Subsistence General Duty,Chief Executives Office,Redfern Travel Ltd,SME,1117489,919.78,Travel & Subsistence,Administration
Land Registry,Land Registry,20/07/2015,Travel & Subsistence General Duty,Commercial & Customer Strategy & Performance,Redfern Travel Ltd,SME,1117489,452.28,Travel & Subsistence,Administration
Land Registry,Land Registry,20/07/2015,Travel & Subsistence General Duty,Commercial Director,Redfern Travel Ltd,SME,1117489,37.65,Travel & Subsistence,Administration
Land Registry,Land Registry,20/07/2015,Travel & Subsistence General Duty,Corp Procurement,Redfern Travel Ltd,SME,1117489,568.04,Travel & Subsistence,Administration
Land Registry,Land Registry,20/07/2015,Travel & Subsistence General Duty,Corporate Assurance,Redfern Travel Ltd,SME,1117489,144.83,Travel & Subsistence,Administration
Land Registry,Land Registry,20/07/2015,Travel & Subsistence General Duty,Corporate Legal Services,Redfern Travel Ltd,SME,1117489,326.52,Travel & Subsistence,Administration
Land Registry,Land Registry,20/07/2015,Travel & Subsistence General Duty,Customer Services,Redfern Travel Ltd,SME,1117489,31.51,Travel & Subsistence,Administration
Land Registry,Land Registry,20/07/2015,Travel & Subsistence General Duty,Dir: (Statutory) Digital Services,Redfern Travel Ltd,SME,1117489,306.04,Travel & Subsistence,Administration
Land Registry,Land Registry,20/07/2015,Travel & Subsistence General Duty,Dir: Operations,Redfern Travel Ltd,SME,1117489,86.92,Travel & Subsistence,Administration
Land Registry,Land Registry,20/07/2015,Travel & Subsistence General Duty,Director of Information Systems,Redfern Travel Ltd,SME,1117489,494.3,Travel & Subsistence,Administration
Land Registry,Land Registry,20/07/2015,Travel & Subsistence General Duty,Director of Legal Services,Redfern Travel Ltd,SME,1117489,81.89,Travel & Subsistence,Administration
Land Registry,Land Registry,20/07/2015,Travel & Subsistence General Duty,Director of Operations,Redfern Travel Ltd,SME,1117489,111.06,Travel & Subsistence,Administration
Land Registry,Land Registry,20/07/2015,Travel & Subsistence General Duty,Durham Office,Redfern Travel Ltd,SME,1117489,380.65,Travel & Subsistence,Administration
Land Registry,Land Registry,20/07/2015,Travel & Subsistence General Duty,Finance Director,Redfern Travel Ltd,SME,1117489,18.31,Travel & Subsistence,Administration
Land Registry,Land Registry,20/07/2015,Travel & Subsistence General Duty,Finance Group,Redfern Travel Ltd,SME,1117489,2.82,Travel & Subsistence,Administration
Land Registry,Land Registry,20/07/2015,Travel & Subsistence General Duty,Forward Scanning,Redfern Travel Ltd,SME,1117489,140.15,Travel & Subsistence,Administration
Land Registry,Land Registry,20/07/2015,Travel & Subsistence General Duty,Fylde Office,Redfern Travel Ltd,SME,1117489,20.9,Travel & Subsistence,Administration
Land Registry,Land Registry,20/07/2015,Travel & Subsistence General Duty,Gloucester Office,Redfern Travel Ltd,SME,1117489,103.71,Travel & Subsistence,Administration
Land Registry,Land Registry,20/07/2015,Travel & Subsistence General Duty,Governance & Policy,Redfern Travel Ltd,SME,1117489,214.21,Travel & Subsistence,Administration
Land Registry,Land Registry,20/07/2015,Travel & Subsistence General Duty,HR,Redfern Travel Ltd,SME,1117489,-42.98,Travel & Subsistence,Administration
Land Registry,Land Registry,20/07/2015,Travel & Subsistence General Duty,HR Group,Redfern Travel Ltd,SME,1117489,"4,212.83",Travel & Subsistence,Administration
Land Registry,Land Registry,20/07/2015,Travel & Subsistence General Duty,Hull Office,Redfern Travel Ltd,SME,1117489,-516.99,Travel & Subsistence,Administration
Land Registry,Land Registry,20/07/2015,Travel & Subsistence General Duty,Internal Solutions Group,Redfern Travel Ltd,SME,1117489,646.32,Travel & Subsistence,Administration
Land Registry,Land Registry,20/07/2015,Travel & Subsistence General Duty,International Unit,Redfern Travel Ltd,SME,1117489,"1,300.43",Travel & Subsistence,Administration
Land Registry,Land Registry,20/07/2015,Travel & Subsistence General Duty,IS Service Delivery,Redfern Travel Ltd,SME,1117489,"2,610.24",Travel & Subsistence,Administration
Land Registry,Land Registry,20/07/2015,Travel & Subsistence General Duty,Leicester Office,Redfern Travel Ltd,SME,1117489,386.21,Travel & Subsistence,Administration
Land Registry,Land Registry,20/07/2015,Travel & Subsistence General Duty,Local Land Charges,Redfern Travel Ltd,SME,1117489,471.92,Travel & Subsistence,Administration
Land Registry,Land Registry,20/07/2015,Travel & Subsistence General Duty,Local Lawyer Group,Redfern Travel Ltd,SME,1117489,989.42,Travel & Subsistence,Administration
Land Registry,Land Registry,20/07/2015,Travel & Subsistence General Duty,LR Board & Board Chair,Redfern Travel Ltd,SME,1117489,71.83,Travel & Subsistence,Administration
Land Registry,Land Registry,20/07/2015,Travel & Subsistence General Duty,LR Connect Portfolio,Redfern Travel Ltd,SME,1117489,"1,420.25",Travel & Subsistence,Administration
Land Registry,Land Registry,20/07/2015,Travel & Subsistence General Duty,Marketing Services Team,Redfern Travel Ltd,SME,1117489,13.42,Travel & Subsistence,Administration
Land Registry,Land Registry,20/07/2015,Travel & Subsistence General Duty,Organisation & Employee Development,Redfern Travel Ltd,SME,1117489,27.44,Travel & Subsistence,Administration
Land Registry,Land Registry,20/07/2015,Travel & Subsistence General Duty,Peterborough Office,Redfern Travel Ltd,SME,1117489,296.87,Travel & Subsistence,Administration
Land Registry,Land Registry,20/07/2015,Travel & Subsistence General Duty,Product Development & Management,Redfern Travel Ltd,SME,1117489,"1,290.44",Travel & Subsistence,Administration
Land Registry,Land Registry,20/07/2015,Travel & Subsistence General Duty,Prog: Digital by Default,Redfern Travel Ltd,SME,1117489,"6,801.83",Travel & Subsistence,Administration
Land Registry,Land Registry,20/07/2015,Travel & Subsistence General Duty,Prog: e-Enablement,Redfern Travel Ltd,SME,1117489,521.71,Travel & Subsistence,Administration
Land Registry,Land Registry,20/07/2015,Travel & Subsistence General Duty,Prog: IT Foundations,Redfern Travel Ltd,SME,1117489,309.2,Travel & Subsistence,Administration
Land Registry,Land Registry,20/07/2015,Travel & Subsistence General Duty,Program: Local Land Charges,Redfern Travel Ltd,SME,1117489,"3,280.35",Travel & Subsistence,Administration
Land Registry,Land Registry,20/07/2015,Travel & Subsistence General Duty,Property Asset Management Group,Redfern Travel Ltd,SME,1117489,439.97,Travel & Subsistence,Administration
Land Registry,Land Registry,20/07/2015,Travel & Subsistence General Duty,Registration Legal Services Group,Redfern Travel Ltd,SME,1117489,375,Travel & Subsistence,Administration
Land Registry,Land Registry,20/07/2015,Travel & Subsistence General Duty,Research & Data Mining,Redfern Travel Ltd,SME,1117489,334.45,Travel & Subsistence,Administration
Land Registry,Land Registry,20/07/2015,Travel & Subsistence General Duty,Strategy Team,Redfern Travel Ltd,SME,1117489,146.27,Travel & Subsistence,Administration
Land Registry,Land Registry,20/07/2015,Travel & Subsistence General Duty,Technology Group,Redfern Travel Ltd,SME,1117489,"1,625.16",Travel & Subsistence,Administration
Land Registry,Land Registry,20/07/2015,Travel & Subsistence General Duty,Telford Office,Redfern Travel Ltd,SME,1117489,56.34,Travel & Subsistence,Administration
Land Registry,Land Registry,20/07/2015,Travel & Subsistence General Duty,Wales Office,Redfern Travel Ltd,SME,1117489,86.92,Travel & Subsistence,Administration
Land Registry,Land Registry,24/07/2015,Travel & Subsistence General Duty,Business Development,Redfern Travel Ltd,SME,1118293,322.57,Travel & Subsistence,Administration
Land Registry,Land Registry,24/07/2015,Travel & Subsistence General Duty,Central Facilities Management Team,Redfern Travel Ltd,SME,1118293,"1,091.35",Travel & Subsistence,Administration
Land Registry,Land Registry,24/07/2015,Travel & Subsistence General Duty,Central Operations Group,Redfern Travel Ltd,SME,1118293,"2,269.93",Travel & Subsistence,Administration
Land Registry,Land Registry,24/07/2015,Travel & Subsistence General Duty,Central RFS,Redfern Travel Ltd,SME,1118293,283.49,Travel & Subsistence,Administration
Land Registry,Land Registry,24/07/2015,Travel & Subsistence General Duty,Chief Executives Office,Redfern Travel Ltd,SME,1118293,968.09,Travel & Subsistence,Administration
Land Registry,Land Registry,24/07/2015,Travel & Subsistence General Duty,Commercial & Customer Strategy & Performance,Redfern Travel Ltd,SME,1118293,285.97,Travel & Subsistence,Administration
Land Registry,Land Registry,24/07/2015,Travel & Subsistence General Duty,Commercial Director,Redfern Travel Ltd,SME,1118293,296.59,Travel & Subsistence,Administration
Land Registry,Land Registry,24/07/2015,Travel & Subsistence General Duty,Corp Procurement,Redfern Travel Ltd,SME,1118293,442.66,Travel & Subsistence,Administration
Land Registry,Land Registry,24/07/2015,Travel & Subsistence General Duty,Corporate Assurance,Redfern Travel Ltd,SME,1118293,140.12,Travel & Subsistence,Administration
Land Registry,Land Registry,24/07/2015,Travel & Subsistence General Duty,Corporate Legal Services,Redfern Travel Ltd,SME,1118293,259.53,Travel & Subsistence,Administration
Land Registry,Land Registry,24/07/2015,Travel & Subsistence General Duty,Croydon Office,Redfern Travel Ltd,SME,1118293,67.68,Travel & Subsistence,Administration
Land Registry,Land Registry,24/07/2015,Travel & Subsistence General Duty,Data Group,Redfern Travel Ltd,SME,1118293,89.93,Travel & Subsistence,Administration
Land Registry,Land Registry,24/07/2015,Travel & Subsistence General Duty,Dir: (Statutory) Digital Services,Redfern Travel Ltd,SME,1118293,174.84,Travel & Subsistence,Administration
Land Registry,Land Registry,24/07/2015,Travel & Subsistence General Duty,Dir: Operations,Redfern Travel Ltd,SME,1118293,180.7,Travel & Subsistence,Administration
Land Registry,Land Registry,24/07/2015,Travel & Subsistence General Duty,Director of Information Systems,Redfern Travel Ltd,SME,1118293,"1,101.58",Travel & Subsistence,Administration
Land Registry,Land Registry,24/07/2015,Travel & Subsistence General Duty,Director of Legal Services,Redfern Travel Ltd,SME,1118293,598.59,Travel & Subsistence,Administration
Land Registry,Land Registry,24/07/2015,Travel & Subsistence General Duty,Director of Operations,Redfern Travel Ltd,SME,1118293,80.88,Travel & Subsistence,Administration
Land Registry,Land Registry,24/07/2015,Travel & Subsistence General Duty,Durham Office,Redfern Travel Ltd,SME,1118293,214.49,Travel & Subsistence,Administration
Land Registry,Land Registry,24/07/2015,Travel & Subsistence General Duty,Finance Director,Redfern Travel Ltd,SME,1118293,313.36,Travel & Subsistence,Administration
Land Registry,Land Registry,24/07/2015,Travel & Subsistence General Duty,Forward Scanning,Redfern Travel Ltd,SME,1118293,107.61,Travel & Subsistence,Administration
Land Registry,Land Registry,24/07/2015,Travel & Subsistence General Duty,Gloucester Office,Redfern Travel Ltd,SME,1118293,26.28,Travel & Subsistence,Administration
Land Registry,Land Registry,24/07/2015,Travel & Subsistence General Duty,HR Group,Redfern Travel Ltd,SME,1118293,"3,491.94",Travel & Subsistence,Administration
Land Registry,Land Registry,24/07/2015,Travel & Subsistence General Duty,HR Operations,Redfern Travel Ltd,SME,1118293,13.72,Travel & Subsistence,Administration
Land Registry,Land Registry,24/07/2015,Travel & Subsistence General Duty,Hull Office,Redfern Travel Ltd,SME,1118293,130.62,Travel & Subsistence,Administration
Land Registry,Land Registry,24/07/2015,Travel & Subsistence General Duty,Internal Solutions Group,Redfern Travel Ltd,SME,1118293,317.86,Travel & Subsistence,Administration
Land Registry,Land Registry,24/07/2015,Travel & Subsistence General Duty,International Unit,Redfern Travel Ltd,SME,1118293,171.82,Travel & Subsistence,Administration
Land Registry,Land Registry,24/07/2015,Travel & Subsistence General Duty,IS Service Delivery,Redfern Travel Ltd,SME,1118293,831.6,Travel & Subsistence,Administration
Land Registry,Land Registry,24/07/2015,Travel & Subsistence General Duty,Leicester Office,Redfern Travel Ltd,SME,1118293,108.72,Travel & Subsistence,Administration
Land Registry,Land Registry,24/07/2015,Travel & Subsistence General Duty,Local Land Charges,Redfern Travel Ltd,SME,1118293,356.9,Travel & Subsistence,Administration
Land Registry,Land Registry,24/07/2015,Travel & Subsistence General Duty,Local Lawyer Group,Redfern Travel Ltd,SME,1118293,"1,278.18",Travel & Subsistence,Administration
Land Registry,Land Registry,24/07/2015,Travel & Subsistence General Duty,LR Board & Board Chair,Redfern Travel Ltd,SME,1118293,401.83,Travel & Subsistence,Administration
Land Registry,Land Registry,24/07/2015,Travel & Subsistence General Duty,LR Connect Portfolio,Redfern Travel Ltd,SME,1118293,483.86,Travel & Subsistence,Administration
Land Registry,Land Registry,24/07/2015,Travel & Subsistence General Duty,Nottingham Office,Redfern Travel Ltd,SME,1118293,138.57,Travel & Subsistence,Administration
Land Registry,Land Registry,24/07/2015,Travel & Subsistence General Duty,Peterborough Office,Redfern Travel Ltd,SME,1118293,537.81,Travel & Subsistence,Administration
Land Registry,Land Registry,24/07/2015,Travel & Subsistence General Duty,Product Development & Management,Redfern Travel Ltd,SME,1118293,384.43,Travel & Subsistence,Administration
Land Registry,Land Registry,24/07/2015,Travel & Subsistence General Duty,Prog: Digital by Default,Redfern Travel Ltd,SME,1118293,"5,307.20",Travel & Subsistence,Administration
Land Registry,Land Registry,24/07/2015,Travel & Subsistence General Duty,Prog: e-Enablement,Redfern Travel Ltd,SME,1118293,412.68,Travel & Subsistence,Administration
Land Registry,Land Registry,24/07/2015,Travel & Subsistence General Duty,Program: Local Land Charges,Redfern Travel Ltd,SME,1118293,"2,514.67",Travel & Subsistence,Administration
Land Registry,Land Registry,24/07/2015,Travel & Subsistence General Duty,Projects and Programme Centre,Redfern Travel Ltd,SME,1118293,410.45,Travel & Subsistence,Administration
Land Registry,Land Registry,24/07/2015,Travel & Subsistence General Duty,Property Asset Management Group,Redfern Travel Ltd,SME,1118293,224.21,Travel & Subsistence,Administration
Land Registry,Land Registry,24/07/2015,Travel & Subsistence General Duty,Research & Data Mining,Redfern Travel Ltd,SME,1118293,243.02,Travel & Subsistence,Administration
Land Registry,Land Registry,24/07/2015,Travel & Subsistence General Duty,Strategy Team,Redfern Travel Ltd,SME,1118293,107.61,Travel & Subsistence,Administration
Land Registry,Land Registry,24/07/2015,Travel & Subsistence General Duty,Technology Group,Redfern Travel Ltd,SME,1118293,773.62,Travel & Subsistence,Administration
Land Registry,Land Registry,24/07/2015,Travel & Subsistence General Duty,Telford Office,Redfern Travel Ltd,SME,1118293,19.15,Travel & Subsistence,Administration
Land Registry,Land Registry,17/07/2015,Letter Post,Birkenhead Office,Royal Mail,Large,1117387,"2,210.07",Letter Post,Administration
Land Registry,Land Registry,17/07/2015,Letter Post,Coventry Office,Royal Mail,Large,1117387,"8,250.52",Letter Post,Administration
Land Registry,Land Registry,17/07/2015,Letter Post,Croydon Office,Royal Mail,Large,1117387,"3,229.54",Letter Post,Administration
Land Registry,Land Registry,17/07/2015,Letter Post,Durham Office,Royal Mail,Large,1117387,"6,654.11",Letter Post,Administration
Land Registry,Land Registry,17/07/2015,Letter Post,Fylde Office,Royal Mail,Large,1117387,"3,391.08",Letter Post,Administration
Land Registry,Land Registry,17/07/2015,Letter Post,Gloucester Office,Royal Mail,Large,1117387,"1,916.54",Letter Post,Administration
Land Registry,Land Registry,17/07/2015,Letter Post,Hull Office,Royal Mail,Large,1117387,"1,995.63",Letter Post,Administration
Land Registry,Land Registry,17/07/2015,Letter Post,IS Service Delivery,Royal Mail,Large,1117387,"15,093.27",Letter Post,Administration
Land Registry,Land Registry,17/07/2015,Letter Post,Land Charges,Royal Mail,Large,1117387,905.2,Letter Post,Administration
Land Registry,Land Registry,17/07/2015,Letter Post,Leicester Office,Royal Mail,Large,1117387,"1,732.11",Letter Post,Administration
Land Registry,Land Registry,17/07/2015,Letter Post,Nottingham Office,Royal Mail,Large,1117387,"2,849.77",Letter Post,Administration
Land Registry,Land Registry,17/07/2015,Letter Post,Peterborough Office,Royal Mail,Large,1117387,"2,847.67",Letter Post,Administration
Land Registry,Land Registry,17/07/2015,Letter Post,Plymouth Office,Royal Mail,Large,1117387,"2,715.58",Letter Post,Administration
Land Registry,Land Registry,17/07/2015,Letter Post,Telford Office,Royal Mail,Large,1117387,"2,056.61",Letter Post,Administration
Land Registry,Land Registry,17/07/2015,Letter Post,Wales Office,Royal Mail,Large,1117387,"11,833.28",Letter Post,Administration
Land Registry,Land Registry,17/07/2015,Letter Post,Weymouth Office,Royal Mail,Large,1117387,"1,866.58",Letter Post,Administration
Land Registry,Land Registry,13/07/2015,Lease Expenses Acquisition & Disposal,Dir: HR,Sanderson Weatherall LLP,SME,1116168,"20,877.92",Lease Expenses Acquisition & Disposal,Administration
Land Registry,Land Registry,13/07/2015,Computer Equipment Maintenance,IS Service Delivery,Snow Software Ltd,Large,1115653,"25,683.00",Computer Equipment Maintenance,Administration
Land Registry,Land Registry,13/07/2015,Fixed Asset Interface Account,Balance Sheet,Snow Software Ltd,Large,1115653,"60,002.40",Fixed Assets,Administration
Land Registry,Land Registry,29/07/2015,Fixed Asset Interface Account,Balance Sheet,Softcat Limited,Large,1118586,"38,460.00",Fixed Assets,Administration
Land Registry,Land Registry,03/07/2015,Assets in the Course of Construction,Balance Sheet,Software Box Ltd,SME,1115430,"97,041.54",Assets in the Course of Construction,Administration
Land Registry,Land Registry,08/07/2015,Computer Equipment Maintenance,IS Service Delivery,Software Box Ltd,SME,1115958,"83,699.55",Computer Equipment Maintenance,Administration
Land Registry,Land Registry,08/07/2015,Computer Equipment Maintenance,IS Service Delivery,Software Box Ltd,SME,1116164,"10,234.52",Computer Equipment Maintenance,Administration
Land Registry,Land Registry,03/07/2015,Computer Equipment Non HP Licences,Prog: Digital by Default,Software Box Ltd,SME,1115430,"7,688.77",Computer Equipment Non HP Licences,Administration
Land Registry,Land Registry,08/07/2015,Fixed Asset Interface Account,Balance Sheet,Software Box Ltd,SME,1115958,"122,759.34",Fixed Assets,Administration
Land Registry,Land Registry,08/07/2015,Fixed Asset Interface Account,Balance Sheet,Software Box Ltd,SME,1116164,"66,262.93",Fixed Assets,Administration
Land Registry,Land Registry,27/07/2015,Rates Payable,Governance & Policy,South Hams District Council,Large,1103042,"4,560.00",Rates Payable,Administration
Land Registry,Land Registry,27/07/2015,Rates Payable,RFS11 - Plymouth,South Hams District Council,Large,1103043,"7,987.00",Rates Payable,Administration
Land Registry,Land Registry,23/07/2015,Computer Equipment Maintenance,IS Service Delivery,Specialist Computer Centres Plc - SCC,Large,1115881,"25,477.00",Computer Equipment Maintenance,Administration
Land Registry,Land Registry,06/07/2015,Computer Equipment Non HP Licences,IS Service Delivery,Specialist Computer Centres Plc - SCC,Large,1115946,"48,281.96",Computer Equipment Non HP Licences,Administration
Land Registry,Land Registry,20/07/2015,Software as a Service (Cloud),IS Service Delivery,Specialist Computer Centres Plc - SCC,Large,1117129,"166,100.57",Cloud Computing Services,Administration
Land Registry,Land Registry,27/07/2015,Rates Payable,Telford Office,Telford & Wrekin Council,Large,1103039,"25,390.00",Rates Payable,Administration
Land Registry,Land Registry,27/07/2015,Rates Payable,Gloucester Computer Centre,Tewkesbury Borough Council,Large,1101942,"11,783.00",Rates Payable,Administration
Land Registry,Land Registry,13/07/2015,Maps & Plans Data Migration,Forward Scanning,TNT (UK) Ltd,Large,1116842,"195,611.47",Maps & Plans Data Migration,Administration
Land Registry,Land Registry,21/07/2015,RFS Outsourced Services,Central RFS,TNT (UK) Ltd,Large,1117662,"189,645.45",Regional File Store Outsourced Services,Administration
Land Registry,Land Registry,21/07/2015,RFS Outsourced Services,Central RFS,TNT (UK) Ltd,Large,1117665,"118,180.65",Regional File Store Outsourced Services,Administration
Land Registry,Land Registry,10/07/2015,Data Network Lines,IS Service Delivery,Vodafone Corporate Ltd,Large,1116456,"61,340.02",Data Network Lines,Administration
Land Registry,Land Registry,06/07/2015,Rates Payable,Weymouth Office,West Dorset District Council,Large,1104080,"19,350.00",Rates Payable,Administration
Land Registry,Land Registry,01/07/2015,Rates Payable,Birkenhead Office,Wirral Metrpolitan Borough Council,Large,1103044,"3,525.00",Rates Payable,Administration
Land Registry,Land Registry,01/07/2015,Rates Payable,Birkenhead Office,Wirral Metrpolitan Borough Council,Large,1103045,"25,143.00",Rates Payable,Administration
Land Registry,Land Registry,21/07/2015,Computer Equipment Consumables,Birkenhead Office,XMA Limited,Large,1117677,"5,115.97",Computer Equipment Consumables,Administration
Land Registry,Land Registry,21/07/2015,Computer Equipment Consumables,Coventry Office,XMA Limited,Large,1117677,"18,903.13",Computer Equipment Consumables,Administration
Land Registry,Land Registry,21/07/2015,Computer Equipment Consumables,Croydon Office,XMA Limited,Large,1117677,"2,620.95",Computer Equipment Consumables,Administration
Land Registry,Land Registry,21/07/2015,Computer Equipment Consumables,Durham Office,XMA Limited,Large,1117677,"5,870.97",Computer Equipment Consumables,Administration
Land Registry,Land Registry,21/07/2015,Computer Equipment Consumables,Fylde Office,XMA Limited,Large,1117677,"2,603.07",Computer Equipment Consumables,Administration
Land Registry,Land Registry,21/07/2015,Computer Equipment Consumables,Gloucester Office,XMA Limited,Large,1117677,"12,785.99",Computer Equipment Consumables,Administration
Land Registry,Land Registry,21/07/2015,Computer Equipment Consumables,Hull Office,XMA Limited,Large,1117677,"3,036.97",Computer Equipment Consumables,Administration
Land Registry,Land Registry,21/07/2015,Computer Equipment Consumables,Internal Solutions Group,XMA Limited,Large,1117677,"3,045.14",Computer Equipment Consumables,Administration
Land Registry,Land Registry,21/07/2015,Computer Equipment Consumables,IS Service Delivery,XMA Limited,Large,1117677,-85.67,Computer Equipment Consumables,Administration
Land Registry,Land Registry,21/07/2015,Computer Equipment Consumables,Leicester Office,XMA Limited,Large,1117677,"5,740.60",Computer Equipment Consumables,Administration
Land Registry,Land Registry,21/07/2015,Computer Equipment Consumables,Nottingham Office,XMA Limited,Large,1117677,"4,844.49",Computer Equipment Consumables,Administration
Land Registry,Land Registry,21/07/2015,Computer Equipment Consumables,Plymouth Office,XMA Limited,Large,1117677,"4,909.00",Computer Equipment Consumables,Administration
Land Registry,Land Registry,21/07/2015,Computer Equipment Consumables,Telford Office,XMA Limited,Large,1117677,"1,433.18",Computer Equipment Consumables,Administration
Land Registry,Land Registry,21/07/2015,Computer Equipment Consumables,Wales Office,XMA Limited,Large,1117677,"9,955.34",Computer Equipment Consumables,Administration
Land Registry,Land Registry,21/07/2015,Computer Equipment Consumables,Weymouth Office,XMA Limited,Large,1117677,"2,109.10",Computer Equipment Consumables,Administration
